bitfinex/quotes_SOLUSD_20220210
["timestamp","ask_amount","ask_price","bid_price","bid_amount"]
[1644503490557,2.23122154,108.32,108.19,131.0]
[1644503490755,0.45,108.4,108.19,131.0]
[1644503490955,11.25,108.37,108.2,1.66730574]
[1644503491174,11.25,108.37,108.19,152.867]
[1644503491556,34.22803187,108.37,108.2,36.95358508]
[1644503491754,13.8547,108.36,108.2,38.87089082]
[1644503491955,12.59706156,108.35,108.2,38.62089082]
[1644503492164,21.582451,108.34,108.2,36.95358508]
[1644503492354,34.23049086,108.33,108.2,36.95358508]
[1644503492555,21.582451,108.32,108.2,36.95358508]
[1644503492756,13.04460257,108.31,108.2,36.95358508]
[1644503492955,11.865966,108.3,108.2,36.95358508]
[1644503493157,32.79154685,108.29,108.2,36.95358508]
[1644503493358,13.8646,108.28,108.2,36.95358508]
[1644503493556,25.1146,108.28,108.2,36.95358508]
[1644503493956,2.78354658,108.27,108.2,36.95358508]
[1644503494357,2.78354658,108.27,108.14,4.619]
[1644503494557,2.78354658,108.27,108.13,13.8612]
[1644503494759,2.78354658,108.27,108.14,4.621]
[1644503494959,2.78354658,108.27,108.13,13.8612]
[1644503495162,14.03354658,108.27,108.13,13.8612]
[1644503495359,13.8663,108.26,108.14,37.02497107]
[1644503495560,30.51492467,108.25,108.14,37.02497107]
[1644503495958,19.26492467,108.25,108.14,37.02497107]
[1644503496358,35.36364621,108.25,108.1,4.621]
[1644503496559,11.7,108.24,108.1,4.621]
[1644503496759,0.45,108.23,108.1,4.621]
[1644503496964,11.25,108.22,108.1,4.621]
[1644503497364,25.1215,108.22,108.11,42.87308926]
[1644503497564,11.25,108.22,108.11,42.87308926]
[1644503498664,11.25,108.25,108.11,42.87308926]
[1644503498864,11.25,108.25,108.12,4.621]
[1644503499065,11.25,108.25,108.13,41.01258063]
[1644503499364,46.2287,108.28,108.13,41.01258063]
[1644503499365,11.25,108.28,108.13,41.26258063]
[1644503499564,11.25,108.28,108.14,4.62]
[1644503499966,20.93779173,108.27,108.15,36.59855681]
[1644503500565,25.1156,108.28,108.15,36.59855681]
[1644503500967,13.089553,108.27,108.15,36.59855681]
[1644503501168,13.8679,108.26,108.15,36.59855681]
[1644503501367,11.25,108.25,108.15,36.59855681]
[1644503501569,17.51311466,108.24,108.15,36.59855681]
[1644503502066,11.25,108.23,108.08,18.4897]
[1644503502266,25.1217,108.23,108.08,18.4897]
[1644503502466,25.1217,108.23,108.08,4.62]
[1644503502867,9.04320031,108.22,108.08,4.62]
[1644503503066,0.30172622,108.18,108.0,4.82803717]
[1644503503271,0.31265225,108.16,108.0,4.82803717]
[1644503503472,11.25,108.17,107.98,9.66405468]
[1644503503473,25.1324,108.15,107.98,9.66405468]
[1644503503669,11.25,108.14,108.0,4.82967995]
[1644503503868,11.25,108.14,108.02,39.04464288]
[1644503504569,25.1341,108.14,108.02,39.04464288]
[1644503505176,22.92442029,108.13,108.02,39.04464288]
[1644503505371,11.25,108.12,108.02,39.04464288]
[1644503505579,1.40067314,108.11,108.02,39.04464288]
[1644503505793,11.25,108.1,108.02,39.04464288]
[1644503506291,11.25,108.1,107.99,4.626]
[1644503506491,13.48122154,108.1,107.99,4.626]
[1644503506691,11.25,108.1,107.99,4.626]
[1644503506891,25.1395,108.1,107.99,4.626]
[1644503507293,3.80924072,108.23,108.01,131.0]
[1644503507493,14.0992,108.21,108.01,131.0]
[1644503507793,13.8793,108.19,108.02,18.5029]
[1644503507992,13.8793,108.19,108.02,45.13765586]
[1644503508193,13.8793,108.19,108.02,46.76365586]
[1644503508396,35.23993991,108.19,108.03,41.42228416]
[1644503508697,2.96445352,108.17,108.05,37.0956472]
[1644503508894,28.09495352,108.17,108.05,37.0956472]
[1644503509995,28.09495352,108.17,108.03,4.624]
[1644503510193,25.1305,108.17,108.01,4.625]
[1644503510394,25.1305,108.17,108.0,57.5095]
[1644503510597,25.1305,108.17,108.01,4.625]
[1644503510794,25.1305,108.17,108.02,15.85037665]
[1644503510995,11.25,108.17,108.03,18.5019]
[1644503511198,11.25,108.17,108.04,39.17420937]
[1644503511595,13.8777,108.19,108.04,39.17420937]
[1644503511795,46.2605,108.22,108.04,56.67975634]
[1644503511997,11.25,108.22,108.05,11.25]
[1644503512196,13.8754,108.21,108.05,25.1243]
[1644503512397,13.8754,108.21,108.05,41.22467665]
[1644503512598,36.15374411,108.21,108.06,44.2589544]
[1644503512796,36.15374411,108.21,108.06,44.5089544]
[1644503512997,11.25,108.2,108.06,44.2589544]
[1644503513199,2.04674932,108.19,108.06,44.2589544]
[1644503513398,13.8779,108.19,108.06,44.2589544]
[1644503513799,11.25,108.2,108.06,44.2589544]
[1644503513997,11.25,108.2,108.06,60.10889772]
[1644503514196,11.25,108.2,108.07,4.624]
[1644503514397,22.37360353,108.19,108.08,37.16088973]
[1644503514798,25.1268,108.2,108.08,37.41088973]
[1644503514999,11.25,108.2,108.09,4.623]
[1644503515201,144.37924072,108.3,108.09,4.623]
[1644503515400,2.23122154,108.24,108.09,4.873]
[1644503515599,11.25,108.25,108.09,4.623]
[1644503515800,20.05353471,108.25,108.1,36.02863274]
[1644503516000,20.05353471,108.25,108.12,47.38698118]
[1644503516200,13.8711,108.24,108.12,47.38698118]
[1644503516901,4.27155872,108.23,108.12,47.38698118]
[1644503517604,6.50278026,108.23,108.12,47.38698118]
[1644503517800,20.37608026,108.23,108.12,47.38698118]
[1644503518009,31.62608026,108.23,108.12,47.38698118]
[1644503518808,27.35452154,108.23,108.12,47.38698118]
[1644503519007,13.8733,108.23,108.12,47.38698118]
[1644503519205,13.87,108.25,108.12,47.38698118]
[1644503519605,27.35122154,108.25,108.12,47.38698118]
[1644503519906,17.53921613,108.24,108.12,47.38698118]
[1644503520106,28.78921613,108.24,108.1,4.621]
[1644503520307,2.23122154,108.23,108.01,4.622]
[1644503520507,11.25,108.22,108.01,11.25]
[1644503520707,11.25,108.22,108.02,4.624]
[1644503520907,95.97122154,108.21,108.02,4.624]
[1644503521208,13.8793,108.18,108.03,37.11626224]
[1644503521405,46.59210934,108.19,108.03,37.11626224]
[1644503521406,0.32158134,108.16,108.03,37.11626224]
[1644503521614,11.25,108.15,108.03,37.11626224]
[1644503521806,6.8584432,108.14,108.03,37.11626224]
[1644503522005,18.1084432,108.14,108.03,37.11626224]
[1644503523406,11.25,108.14,108.03,37.11626224]
[1644503523808,13.48122154,108.14,108.03,37.11626224]
[1644503524009,13.48122154,108.14,108.03,36.61626224]
[1644503524209,11.25,108.14,108.03,36.61626224]
[1644503524409,22.04127311,108.13,108.03,36.61626224]
[1644503524608,33.29127311,108.13,108.03,36.61626224]
[1644503524811,13.8856,108.12,108.03,36.61626224]
[1644503525016,16.26504186,108.11,107.96,4.626]
[1644503525412,16.26504186,108.11,107.96,1.64313093]
[1644503525812,11.25,108.11,107.96,17.49307425]
[1644503526315,11.25,108.11,107.96,31.63007425]
[1644503526513,11.25,108.11,107.96,29.98694332]
[1644503526915,20.44186611,108.1,107.97,38.49943415]
[1644503527317,45.58066611,108.1,107.97,38.49943415]
[1644503527716,2.23122154,108.09,107.93,22.65271132]
[1644503527915,11.25,108.08,107.93,6.802768]
[1644503528117,0.806,108.07,107.93,6.802768]
[1644503528315,11.25,108.06,107.93,6.802768]
[1644503528515,13.48122154,108.06,107.93,6.802768]
[1644503528715,20.44186611,108.04,107.94,39.24354347]
[1644503530622,34.33826611,108.04,107.94,39.24354347]
[1644503531223,13.8964,108.04,107.94,39.24354347]
[1644503531423,11.25,108.06,107.94,39.24354347]
[1644503532123,11.25,108.09,107.94,39.49354347]
[1644503532322,24.50731603,108.08,107.94,39.49354347]
[1644503532622,11.25,108.09,107.94,53.38354347]
[1644503532822,11.25,108.09,107.95,4.628]
[1644503533022,11.25,108.09,107.95,1.64313093]
[1644503533221,11.25,108.09,107.96,17.49307425]
[1644503533420,11.25,108.09,107.97,4.628]
[1644503533622,11.25,108.09,107.98,35.60071841]
[1644503533822,13.8855,108.12,107.99,4.628]
[1644503534022,14.1281,108.16,108.0,11.25]
[1644503534222,24.8742,108.2,108.01,4.625]
[1644503534424,13.6242,108.2,108.02,11.25]
[1644503534624,13.6242,108.2,108.04,2.67]
[1644503534824,13.6242,108.2,108.05,51.48616219]
[1644503534825,23.44500861,108.19,108.05,51.48616219]
[1644503535024,26.46253015,108.19,108.05,51.48616219]
[1644503535427,2.23122154,108.18,108.02,11.25]
[1644503535626,12.0332,108.17,107.97,11.25]
[1644503535826,24.8353373,108.17,107.97,11.25]
[1644503536026,2.23122154,108.16,107.98,4.626]
[1644503536227,11.25,108.15,107.98,4.626]
[1644503536427,2.19668482,108.14,107.99,42.97323633]
[1644503536627,3.61130636,108.14,107.99,42.97323633]
[1644503536827,13.48122154,108.13,107.99,42.97323633]
[1644503537028,19.36011338,108.12,107.99,42.97323633]
[1644503537230,0.8349,108.11,107.99,42.97323633]
[1644503537430,5.46498005,108.1,107.98,4.626]
[1644503537634,12.0854,108.09,107.98,4.626]
[1644503537834,14.31662154,108.09,107.98,4.626]
[1644503538030,13.48122154,108.09,107.98,4.626]
[1644503538236,11.25,108.09,107.98,4.626]
[1644503538429,11.25,108.09,107.99,34.3434091]
[1644503538629,25.1386,108.09,107.99,34.3434091]
[1644503538830,11.25,108.09,107.99,34.3434091]
[1644503539654,11.9983,108.12,107.99,34.5934091]
[1644503539858,11.9686,108.18,108.0,15.877]
[1644503540055,0.6889,108.17,108.0,31.36583221]
[1644503540355,2.23122154,108.2,108.01,30.16697948]
[1644503540556,20.80718225,108.19,108.02,46.28141514]
[1644503540754,20.80718225,108.19,108.02,51.15641514]
[1644503540955,34.68358225,108.19,108.02,71.03611514]
[1644503541857,36.91480379,108.19,108.02,71.03611514]
[1644503542055,36.91480379,108.19,108.02,65.03611514]
[1644503542460,11.25,108.18,108.02,65.03611514]
[1644503542658,13.882,108.14,108.02,65.03611514]
[1644503542858,20.80718225,108.13,108.02,65.03611514]
[1644503543057,20.80718225,108.13,108.02,50.90641514]
[1644503543258,23.03840379,108.13,108.02,39.65641514]
[1644503543457,20.80718225,108.13,108.02,39.65641514]
[1644503543660,11.25,108.16,108.02,39.65641514]
[1644503543858,0.7763,108.18,108.02,50.90641514]
[1644503544158,0.7763,108.18,108.02,81.85318077]
[1644503544360,0.7763,108.18,108.02,88.10318077]
[1644503544560,22.88697745,108.17,108.02,88.10318077]
[1644503544967,14.6533,108.18,108.02,80.45469179]
[1644503545160,2.23122154,108.16,108.02,60.41091514]
[1644503545360,2.23122154,108.18,108.03,4.625]
[1644503545562,2.23122154,108.18,108.03,29.754]
[1644503545761,2.23122154,108.18,108.03,30.004]
[1644503546061,23.23387333,108.17,108.04,43.85196113]
[1644503546262,13.8788,108.17,108.04,44.10196113]
[1644503546660,13.8788,108.17,108.04,43.85196113]
[1644503546861,16.11002154,108.17,108.04,43.85196113]
[1644503547062,16.11002154,108.17,108.02,4.625]
[1644503547063,11.25,108.16,108.02,4.625]
[1644503547261,94.04342072,108.15,108.02,4.625]
[1644503547463,11.25,108.14,108.02,4.625]
[1644503547862,11.25,108.14,107.97,11.25]
[1644503548062,18.49865097,108.13,107.98,36.36904276]
[1644503548263,29.74865097,108.13,107.98,40.99604276]
[1644503548562,6.32644246,108.11,107.98,36.36904276]
[1644503548762,0.7759,108.1,107.98,36.36904276]
[1644503548962,18.17048897,108.09,107.98,36.36904276]
[1644503549562,32.05878897,108.09,107.98,36.36904276]
[1644503550067,104.99,108.08,107.95,338.71030844]
[1644503550264,106.156,108.08,107.95,338.71030844]
[1644503550465,0.45,108.04,107.89,2.60511492]
[1644503550666,11.56483002,108.03,107.86,9.65575211]
[1644503550868,11.56483002,108.03,107.85,523.67191067]
[1644503550869,24.13654868,108.03,107.85,523.67191067]
[1644503551167,6.65460446,108.02,107.86,58.15457629]
[1644503551369,6.65460446,108.02,107.86,45.8818861]
[1644503551569,11.25,108.01,107.86,45.8818861]
[1644503551768,18.17048897,108.0,107.86,45.8818861]
[1644503551967,25.1503,108.0,107.86,45.8818861]
[1644503552767,25.1503,108.0,107.86,46.1318861]
[1644503552967,47.96195193,108.0,107.86,46.1318861]
[1644503553168,25.1503,108.0,107.86,74.88115344]
[1644503553367,12.0262,108.03,107.87,15.50415958]
[1644503553567,0.7762,108.03,107.87,44.0232058]
[1644503553768,0.7762,108.03,107.88,34.81355817]
[1644503553966,0.7762,108.03,107.89,16.46495494]
[1644503554167,0.7762,108.03,107.9,43.08550562]
[1644503554367,21.43667383,108.04,107.91,13.85984002]
[1644503554569,21.43667383,108.04,107.92,38.56662466]
[1644503554970,11.25,108.05,107.92,38.56662466]
[1644503555669,11.25,108.05,107.92,52.46022466]
[1644503555867,13.8936,108.06,107.93,4.63]
[1644503556067,36.10235906,108.06,107.92,52.46022466]
[1644503556667,13.8936,108.06,107.92,54.35454422]
[1644503556868,0.8363,108.07,107.93,11.25]
[1644503557069,0.8057,108.14,107.93,11.25]
[1644503557268,11.25,108.13,107.98,13.8859]
[1644503557470,0.7752,108.12,107.98,13.8859]
[1644503557674,20.33317719,108.12,107.99,36.53865533]
[1644503557969,34.21907719,108.12,107.99,36.78865533]
[1644503558171,13.8859,108.12,107.99,36.53865533]
[1644503558378,9.52438601,108.17,108.0,142.25]
[1644503558570,0.00183697,108.19,108.03,140.57]
[1644503558771,0.6541,108.27,108.04,151.82]
[1644503558970,3.80924072,108.31,108.11,46.2161]
[1644503559171,11.25,108.3,108.12,11.25]
[1644503559370,60.62750817,108.29,108.12,57.70829352]
[1644503559571,40.98948843,108.27,108.12,56.06397396]
[1644503559771,63.0,108.23,108.05,22.92596666]
[1644503559972,13.8813,108.17,107.96,10.96258569]
[1644503560274,0.30936144,108.14,107.94,46.2856]
[1644503560472,17.69345335,108.16,107.99,1.95]
[1644503560671,11.25,108.2,108.0,11.25]
[1644503560873,12.07641051,108.21,108.03,1.95]
[1644503561072,13.48122154,108.24,108.04,15.874]
[1644503561373,13.48122154,108.24,108.07,1.95]
[1644503561574,13.48122154,108.24,108.08,18.4939]
[1644503561775,2.23122154,108.24,108.08,14.1219]
[1644503561975,3.80924072,108.31,108.15,1.95]
[1644503562276,3.80924072,108.38,108.2,1.95]
[1644503562473,1.29830647,108.36,108.2,13.2]
[1644503562674,1.29830647,108.36,108.22,13.8519]
[1644503562878,1.29830647,108.37,108.22,33.3019]
[1644503563176,1.29830647,108.37,108.23,47.98926688]
[1644503563373,1.29830647,108.37,108.23,54.23926688]
[1644503563573,1.29830647,108.38,108.24,6.27242602]
[1644503563775,1.29830647,108.38,108.24,33.00592602]
[1644503564074,13.35460647,108.42,108.24,37.62192602]
[1644503564276,4.71463607,108.39,108.25,43.09326761]
[1644503564673,11.25,108.4,108.26,4.615]
[1644503564974,11.25,108.4,108.26,6.52142602]
[1644503565174,11.25,108.4,108.26,1.90642602]
[1644503565579,11.25,108.4,108.27,37.25841779]
[1644503565777,11.25,108.4,108.29,46.42100156]
[1644503566177,11.25,108.4,108.29,46.67100156]
[1644503566980,0.8002,108.39,108.27,4.614]
[1644503567178,11.25,108.38,108.2,4.614]
[1644503567381,0.7965,108.37,108.2,4.614]
[1644503567580,11.25,108.36,108.2,10.614]
[1644503567984,3.84571894,108.35,108.21,39.8888351]
[1644503568185,6.07694048,108.35,108.21,39.8888351]
[1644503568584,3.84571894,108.35,108.21,45.8888351]
[1644503568983,3.84571894,108.35,108.21,39.8888351]
[1644503569283,11.25,108.36,108.21,39.8888351]
[1644503569483,11.25,108.36,108.22,4.617]
[1644503569684,0.25,108.36,108.23,11.25]
[1644503569882,0.8433,108.4,108.23,11.5]
[1644503570083,15.00770813,108.39,108.24,50.78656644]
[1644503570284,11.25,108.39,108.24,51.03656644]
[1644503570483,0.8433,108.4,108.25,11.25]
[1644503570687,0.8433,108.4,108.26,18.4611]
[1644503570883,0.8433,108.4,108.26,45.99575726]
[1644503571086,0.8433,108.4,108.26,47.65218328]
[1644503571284,0.8433,108.4,108.27,51.51375119]
[1644503571487,0.8433,108.4,108.28,4.615]
[1644503571685,2.03139057,108.4,108.29,41.44705493]
[1644503572085,11.25,108.39,108.29,41.44705493]
[1644503572784,11.5,108.39,108.29,41.44705493]
[1644503573386,11.25,108.39,108.29,41.44705493]
[1644503574188,0.7073714,108.38,108.29,41.44705493]
[1644503574390,0.7073714,108.38,108.25,4.614]
[1644503574588,11.25,108.37,108.25,4.614]
[1644503575389,11.25,108.37,108.26,38.23183336]
[1644503576391,4.26114376,108.36,108.26,34.73183336]
[1644503576692,2.23122154,108.4,108.26,34.73183336]
[1644503576693,11.25,108.38,108.26,34.73183336]
[1644503576891,11.25,108.37,108.26,34.73183336]
[1644503577492,6.53158249,108.36,108.26,34.73183336]
[1644503578091,6.53158249,108.36,108.23,4.615]
[1644503578295,13.48122154,108.35,108.23,4.615]
[1644503578493,13.48122154,108.35,108.19,4.617]
[1644503578694,3.07502154,108.34,108.15,437.18228836]
[1644503578895,11.25,108.33,108.16,4.619]
[1644503579094,2.28476338,108.32,108.17,34.70803065]
[1644503579296,11.25,108.31,108.18,4.619]
[1644503579693,11.5,108.31,108.18,4.619]
[1644503580293,19.18611549,108.31,108.19,48.16425732]
[1644503580494,2.23122154,108.3,108.19,48.16425732]
[1644503580724,1.13023038,108.29,108.19,48.16425732]
[1644503580923,2.23122154,108.33,108.19,48.16425732]
[1644503581317,11.25,108.32,108.19,48.16425732]
[1644503581524,0.8058,108.31,108.19,48.16425732]
[1644503581717,18.01402235,108.3,108.19,48.16425732]
[1644503581917,13.8657,108.29,108.15,418.93228836]
[1644503582119,0.30476147,108.27,108.07,4.62]
[1644503582318,11.25,108.26,108.07,4.62]
[1644503582521,14.21132154,108.26,108.07,4.62]
[1644503582719,13.48122154,108.26,108.08,13.50496699]
[1644503582918,15.53354506,108.26,108.09,34.65880254]
[1644503583118,11.25,108.26,108.09,34.65880254]
[1644503583320,11.25,108.26,108.1,13.50496699]
[1644503583718,11.25,108.26,108.1,19.75496699]
[1644503584118,11.25,108.26,108.11,56.20940436]
[1644503584319,11.25,108.26,108.11,73.70940436]
[1644503584618,11.25,108.26,108.12,4.621]
[1644503584819,11.25,108.26,108.12,10.871]
[1644503585221,11.25,108.26,108.13,34.78472539]
[1644503585521,11.25,108.3,108.14,4.621]
[1644503585819,0.768,108.31,108.15,11.25]
[1644503586023,0.768,108.31,108.16,4.619]
[1644503586320,8.7819216,108.3,108.17,44.70531093]
[1644503586522,33.8960216,108.3,108.17,44.70531093]
[1644503586720,2.23122154,108.29,108.12,4.619]
[1644503586919,2.23122154,108.29,108.07,17.16346821]
[1644503586920,11.25,108.28,108.07,17.16346821]
[1644503587121,11.25,108.28,108.09,6.0]
[1644503587321,95.97122154,108.27,108.11,551.57966809]
[1644503587519,11.25,108.26,108.11,551.57966809]
[1644503587720,2.26564581,108.23,108.12,36.91068206]
[1644503587923,11.25,108.22,108.07,4.62]
[1644503588333,13.48122154,108.22,108.07,4.62]
[1644503588633,13.8771,108.2,108.03,1.65238966]
[1644503588828,14.30914254,108.21,108.03,1.65238966]
[1644503588829,6.55070006,108.21,108.04,45.57679046]
[1644503589032,2.23122154,108.23,108.06,13.50496699]
[1644503589229,11.25,108.23,108.1,114.3]
[1644503589833,11.25,108.23,108.1,114.55]
[1644503590033,0.8439,108.25,108.11,43.61359117]
[1644503590235,0.8439,108.25,108.11,49.61359117]
[1644503590433,0.8439,108.25,108.11,43.86359117]
[1644503590733,0.8439,108.25,108.12,1.65238966]
[1644503590935,1.29830647,108.3,108.13,4.621]
[1644503591136,12.54830647,108.3,108.13,15.871]
[1644503591344,11.25,108.3,108.14,1.65238966]
[1644503591535,26.400295,108.3,108.15,49.13886798]
[1644503591735,25.113,108.3,108.15,55.38886798]
[1644503591934,11.25,108.3,108.16,1.65238966]
[1644503592143,11.25,108.3,108.17,4.619]
[1644503592335,11.25,108.3,108.17,10.869]
[1644503592534,1.29830647,108.33,108.18,1.65238966]
[1644503592737,1.29830647,108.33,108.19,36.34539091]
[1644503592935,12.54830647,108.34,108.19,36.34539091]
[1644503593136,12.54830647,108.34,108.19,44.24764562]
[1644503593739,26.40590647,108.34,108.19,44.24764562]
[1644503594135,11.25,108.34,108.19,55.49764562]
[1644503594336,11.25,108.34,108.2,4.618]
[1644503594735,11.25,108.34,108.21,40.16975255]
[1644503594936,9.8556593,108.36,108.21,49.76749784]
[1644503594937,3.52952801,108.36,108.21,49.76749784]
[1644503595136,2.23122154,108.36,108.21,56.01749784]
[1644503595337,1.29830647,108.39,108.21,86.98023234]
[1644503595537,1.29830647,108.4,108.22,8.79821282]
[1644503595737,1.29830647,108.41,108.23,11.25]
[1644503595942,1.29830647,108.42,108.26,13.8476]
[1644503596138,1.29830647,108.44,108.32,1.95]
[1644503596341,1.76151942,108.46,108.32,8.2]
[1644503596540,0.46321295,108.46,108.34,1.95]
[1644503596740,0.46321295,108.46,108.34,8.2]
[1644503597144,0.46321295,108.46,108.35,4.612]
[1644503597438,0.46321295,108.46,108.36,36.91374681]
[1644503597738,0.46321295,108.46,108.36,37.16374681]
[1644503598142,0.46321295,108.46,108.36,68.24784681]
[1644503598742,1.29830647,108.51,108.36,68.24784681]
[1644503598944,1.29830647,108.52,108.36,69.90010152]
[1644503599142,1.29830647,108.53,108.36,100.86283602]
[1644503599342,1.29830647,108.53,108.36,109.66104884]
[1644503599547,1.29830647,108.55,108.36,109.66104884]
[1644503599741,2.37632846,108.55,108.37,4.609]
[1644503599944,12.54830647,108.57,108.39,13.8291]
[1644503600142,12.54830647,108.57,108.4,11.25]
[1644503600346,12.54830647,108.57,108.41,4.608]
[1644503600544,12.54830647,108.57,108.42,13.2]
[1644503600751,1.29830647,108.58,108.43,4.608]
[1644503600948,1.29830647,108.6,108.44,51.47499288]
[1644503601148,17.35502801,108.61,108.45,4.607]
[1644503601351,2.23122154,108.58,108.45,0.25]
[1644503601651,3.52952801,108.58,108.45,0.25]
[1644503601847,1.29830647,108.58,108.45,0.25]
[1644503602248,14.77952801,108.6,108.45,0.25]
[1644503602449,12.54830647,108.6,108.45,4.607]
[1644503602650,11.25,108.6,108.45,4.607]
[1644503602850,2.23122154,108.59,108.45,4.857]
[1644503603257,13.8285,108.58,108.46,43.37754264]
[1644503603451,1.29830647,108.61,108.46,43.37754264]
[1644503603651,1.29830647,108.61,108.46,43.62754264]
[1644503603850,15.43320647,108.63,108.47,1.64820769]
[1644503604051,23.051259,108.62,108.46,43.37754264]
[1644503604253,7.37745426,108.61,108.46,43.37754264]
[1644503604452,13.8275,108.59,108.46,43.37754264]
[1644503604654,2.40210456,108.58,108.46,43.37754264]
[1644503605051,25.0775,108.59,108.46,43.37754264]
[1644503605853,27.30872154,108.59,108.46,43.37754264]
[1644503606055,27.30872154,108.59,108.4,7.402]
[1644503606056,0.8063,108.58,108.4,12.009]
[1644503606353,13.8338,108.54,108.4,7.402]
[1644503606554,25.0838,108.54,108.4,7.402]
[1644503606757,27.31502154,108.54,108.4,7.402]
[1644503606971,35.21680036,108.54,108.41,47.25941005]
[1644503607169,25.0838,108.54,108.41,47.25941005]
[1644503607970,27.31502154,108.54,108.41,47.25941005]
[1644503608174,8.42639383,108.53,108.41,47.25941005]
[1644503608570,25.0838,108.54,108.41,47.25941005]
[1644503608770,25.0838,108.54,108.41,47.50941005]
[1644503609284,25.0838,108.54,108.41,47.25941005]
[1644503609673,1.29830647,108.65,108.43,74.0]
[1644503609871,1.29830647,108.68,108.47,140.57]
[1644503610071,13.8921,108.73,108.49,140.57]
[1644503610273,13.8921,108.73,108.51,140.57]
[1644503610471,13.8921,108.73,108.52,15.853]
[1644503610671,42.62398608,108.72,108.57,11.07201826]
[1644503610871,42.62398608,108.72,108.59,15.77705076]
[1644503611071,42.62398608,108.72,108.58,11.25]
[1644503611372,11.821118,108.71,108.58,11.5]
[1644503612070,35.78353648,108.7,108.58,11.5]
[1644503612672,11.823293,108.69,108.58,0.25]
[1644503612972,36.889693,108.69,108.53,11.0]
[1644503613173,48.82944078,108.68,108.5,4.602]
[1644503613372,23.075469,108.67,108.5,4.602]
[1644503613571,11.25,108.67,108.5,15.852]
[1644503613774,0.25,108.67,108.5,15.852]
[1644503614173,49.07944078,108.68,108.51,1.65360573]
[1644503614376,11.869267,108.67,108.52,37.62776785]
[1644503614575,42.57091922,108.63,108.52,37.62776785]
[1644503614774,42.57091922,108.63,108.52,27.87522944]
[1644503614973,42.57091922,108.63,108.52,11.25]
[1644503615574,56.39281922,108.63,108.52,11.25]
[1644503615775,56.64281922,108.63,108.52,11.25]
[1644503616477,56.39281922,108.63,108.52,11.25]
[1644503617676,56.39281922,108.63,108.52,11.5]
[1644503618576,42.57091922,108.63,108.52,28.05300722]
[1644503618778,42.57091922,108.63,108.52,44.76877604]
[1644503618978,46.0529,108.71,108.52,44.76877604]
[1644503619177,13.8921,108.73,108.53,4.602]
[1644503619382,13.8921,108.73,108.54,11.25]
[1644503619578,13.8921,108.73,108.55,4.602]
[1644503619782,13.8921,108.73,108.56,11.25]
[1644503619980,39.6786543,108.72,108.56,11.25]
[1644503620681,45.58202182,108.7,108.56,11.25]
[1644503620884,116.850533,108.69,108.51,11.25]
[1644503621182,93.74,108.67,108.51,11.25]
[1644503621382,93.74,108.65,108.51,11.25]
[1644503621582,11.25,108.64,108.47,11.25]
[1644503621781,40.01624404,108.63,108.47,11.25]
[1644503621984,107.5654,108.6,108.47,11.25]
[1644503622183,44.01117058,108.59,108.47,11.25]
[1644503622384,44.26117058,108.59,108.47,11.25]
[1644503622883,138.00117058,108.59,108.47,11.25]
[1644503623085,44.26117058,108.59,108.47,11.25]
[1644503623283,44.01117058,108.59,108.48,25.00755754]
[1644503623485,44.01117058,108.59,108.5,1.84151148]
[1644503623684,46.0648,108.67,108.51,15.856]
[1644503623885,46.0648,108.67,108.51,32.1477776]
[1644503624092,46.0648,108.67,108.51,47.8916619]
[1644503624286,1.29830647,108.69,108.52,16.0417776]
[1644503624490,1.29830647,108.69,108.53,11.25]
[1644503624686,38.64457325,108.68,108.54,21.11399639]
[1644503624887,38.64457325,108.68,108.54,32.61399639]
[1644503625291,38.64457325,108.68,108.54,64.39965829]
[1644503625486,38.64457325,108.68,108.54,78.8616232]
[1644503625689,1.29830647,108.73,108.55,4.603]
[1644503625887,1.29830647,108.73,108.56,11.25]
[1644503626086,1.29830647,108.73,108.57,4.602]
[1644503626288,1.29830647,108.72,108.58,11.25]